[Event "Marshall CC U2400 October 2024"]
[Site "New York"]
[Date "2024.10.19"]
[Round "2.5"]
[White "Sukhiashvili, Alexander"]
[Black "Gutnik, Aleksandr"]
[Result "1-0"]
[ECO "C10"]
[WhiteElo "1812"]
[BlackElo "1944"]
[Annotator "RC"]
[PlyCount "55"]
[EventDate "2024.04.20"]
[EventType "swiss"]
[EventCountry "USA"]
[SourceTitle "playchess.com"]
[Source "ChessBase"]
[SourceQuality "1"]
[TimeControl "5400+30"]

1. e4 {[%emt 0:12:49]} e6 {[%emt 0:00:09]} 2. d4 {[%emt 0:00:04]} d5 {[%emt 0:00:09]} 3. Nc3 {[%emt 0:00:01]} dxe4 {[%emt 0:00:11]} 4. Nxe4 {[%emt 0:00:01]} Nf6 {[%emt 0:00:12]} 5. Bd3 {[%emt 0:00:28]} Nxe4 {[%emt 0:02:22]} 6. Bxe4 {[%emt 0:00:02]} c5 {[%emt 0:00:33]} 7. Nf3 {[%emt 0:00:36]} f5 {[%emt 0:02:36]} 8. Bd3 {[%emt 0:02:44]} Nc6 {[%emt 0:01:25]} 9. dxc5 {[%emt 0:04:19]} Bxc5 {[%emt 0:00:13]} 10. O-O {[%emt 0:00:11]} O-O {[%emt 0:02:11]} 11. Re1 {[%emt 0:05:49]} Qb6 {[%emt 0:03:43]} 12. Re2 {[%emt 0:02:30]} Kh8 {[%emt 0:03:40]} 13. Qe1 {[%emt 0:01:31]} Bd7 {[%emt 0:02:52]} 14. c3 {[%emt 0:01:15]} a5 {[%emt 0:00:54]} 15. Bc4 {[%emt 0:01:09]} Rae8 {[%emt 0:02:10]} 16. Bf4 {[%emt 0:01:28]} Nd8 {[%emt 0:11:59]} 17. Ne5 {[%emt 0:01:43]} Bc8 {[%emt 0:03:05]} 18. Rd1 {[%emt 0:02:00]} Nc6 {[%emt 0:04:17]} 19. Nd3 {[%emt 0:01:09]} e5 {[%emt 0:07:28]} 20. Bxe5 {[%emt 0:01:25]} Nxe5 {[%emt 0:01:46]} 21. Nxe5 {[%emt 0:00:52]} Re7 {[%emt 0:08:04]} 22. Nf7+ {[%emt 0:08:25]} Rexf7 {[%emt 0:00:23]} 23. Bxf7 {[%emt 0:00:08]} Qf6 {[%emt 0:02:48]} 24. Be6 {[%emt 0:01:50]} Bxe6 {[%emt 0:03:47]} 25. Rxe6 {[%emt 0:00:10]} Qf7 {[%emt 0:00:09]} 26. Rd5 {[%emt 0:01:22]} b6 {[%emt 0:00:38]} 27. b4 {[%emt 0:00:27]} axb4 {[%emt 0:01:06]} 28. cxb4 {[%emt 0:00:05]} 1-0

[Event "Marshall CC U2400 October 2024"]
[Site "New York"]
[Date "2024.10.19"]
[Round "2.6"]
[White "Bonin, Jay"]
[Black "Gerson, Elijah B"]
[Result "1-0"]
[ECO "D11"]
[WhiteElo "2131"]
[BlackElo "1747"]
[Annotator "RC"]
[PlyCount "77"]
[EventDate "2024.04.20"]
[EventType "swiss"]
[EventCountry "USA"]
[SourceTitle "playchess.com"]
[Source "ChessBase"]
[SourceQuality "1"]
[TimeControl "5400+30"]

1. d4 {[%emt 0:00:30]} d5 {[%emt 0:15:22]} 2. Nf3 {[%emt 0:00:00]} Nf6 {[%emt 0:01:07]} 3. c4 {[%emt 0:00:00]} c6 {[%emt 0:00:03]} 4. Qb3 {[%emt 0:00:00]} e6 {[%emt 0:00:37]} 5. Nbd2 {[%emt 0:00:00]} Bd6 {[%emt 0:00:28]} 6. g3 {[%emt 0:00:00]} Nbd7 {[%emt 0:00:25]} 7. Bg2 {[%emt 0:00:04]} O-O {[%emt 0:00:41]} 8. O-O {[%emt 0:00:04]} Re8 {[%emt 0:01:34]} 9. e4 {[%emt 0:02:12]} Nxe4 {[%emt 0:03:22]} 10. Nxe4 {[%emt 0:00:07]} dxe4 {[%emt 0:00:12]} 11. Ng5 {[%emt 0:00:03]} Nf6 {[%emt 0:01:12]} 12. Rd1 {[%emt 0:02:27]} h6 {[%emt 0:01:53]} 13. Nxe4 {[%emt 0:00:07]} Nxe4 {[%emt 0:00:03]} 14. Bxe4 {[%emt 0:00:05]} Qf6 {[%emt 0:03:05]} 15. Be3 {[%emt 0:02:25]} a5 {[%emt 0:02:50]} 16. a3 {[%emt 0:01:14]} e5 {[%emt 0:04:36]} 17. d5 {[%emt 0:00:38]} c5 {[%emt 0:00:47]} 18. Qb5 {[%emt 0:02:28]} Qe7 {[%emt 0:00:21]} 19. Bxc5 {[%emt 0:01:03]} Bxc5 {[%emt 0:01:00]} 20. d6 {[%emt 0:00:04]} Bxf2+ {[%emt 0:01:38]} 21. Kxf2 {[%emt 0:00:03]} Qf6+ {[%emt 0:00:56]} 22. Kg1 {[%emt 0:03:40]} Be6 {[%emt 0:02:40]} 23. c5 {[%emt 0:04:02]} Qg5 {[%emt 0:01:10]} 24. Qd3 {[%emt 0:02:12]} Rab8 {[%emt 0:02:02]} 25. b4 {[%emt 0:00:54]} f5 {[%emt 0:00:42]} 26. Bd5 {[%emt 0:00:30]} e4 {[%emt 0:01:07]} 27. Bxe6+ {[%emt 0:01:07]} Rxe6 {[%emt 0:01:48]} 28. Qb3 {[%emt 0:00:17]} Kh7 {[%emt 0:01:00]} 29. Rf1 {[%emt 0:02:25]} Qf6 {[%emt 0:01:14]} 30. Qd5 {[%emt 0:00:45]} Qe5 {[%emt 0:04:22]} 31. Rad1 {[%emt 0:02:29]} Qxd5 {[%emt 0:01:28]} 32. Rxd5 {[%emt 0:00:05]} g6 {[%emt 0:00:23]} 33. b5 {[%emt 0:02:17]} Rc8 {[%emt 0:00:39]} 34. Rc1 {[%emt 0:00:29]} e3 {[%emt 0:01:06]} 35. Kf1 {[%emt 0:00:36]} f4 {[%emt 0:00:50]} 36. gxf4 {[%emt 0:00:16]} Rf8 {[%emt 0:00:21]} 37. f5 {[%emt 0:00:25]} gxf5 {[%emt 0:00:25]} 38. d7 {[%emt 0:00:21]} Rd8 {[%emt 0:01:20]} 39. c6 {[%emt 0:03:04]} 1-0

[Event "Marshall CC U2400 October 2024"]
[Site "New York"]
[Date "2024.10.19"]
[Round "2.7"]
[White "Zhang, Andrew"]
[Black "Schaefer, Sasha Milo"]
[Result "0-1"]
[ECO "B13"]
[WhiteElo "1943"]
[BlackElo "1850"]
[Annotator "RC"]
[PlyCount "58"]
[EventDate "2024.04.20"]
[EventType "swiss"]
[EventCountry "USA"]
[SourceTitle "playchess.com"]
[Source "ChessBase"]
[SourceQuality "1"]
[TimeControl "5400+30"]

1. e4 {[%emt 0:00:14]} c6 {[%emt 0:00:02]} 2. d4 {[%emt 0:00:22]} d5 {[%emt 0:00:02]} 3. exd5 {[%emt 0:00:04]} cxd5 {[%emt 0:00:03]} 4. Bd3 {[%emt 0:00:05]} Nc6 {[%emt 0:00:03]} 5. c3 {[%emt 0:00:05]} Nf6 {[%emt 0:00:03]} 6. h3 {[%emt 0:00:16]} e5 {[%emt 0:00:03]} 7. dxe5 {[%emt 0:00:29]} Nxe5 {[%emt 0:00:04]} 8. Qe2 {[%emt 0:00:26]} Ne4 {[%emt 0:00:33]} 9. Bb5+ {[%emt 0:03:12]} Bd7 {[%emt 0:00:09]} 10. Bxd7+ {[%emt 0:00:32]} Qxd7 {[%emt 0:00:07]} 11. Nf3 {[%emt 0:00:54]} Nc6 {[%emt 0:08:45]} 12. O-O {[%emt 0:03:30]} O-O-O {[%emt 0:03:22]} 13. Be3 {[%emt 0:02:41]} Bd6 {[%emt 0:02:26]} 14. Nbd2 {[%emt 0:03:28]} Rhe8 {[%emt 0:02:26]} 15. Nxe4 {[%emt 0:03:45]} dxe4 {[%emt 0:06:46]} 16. Nd4 {[%emt 0:01:33]} Ne5 {[%emt 0:01:04]} 17. f3 {[%emt 0:06:09]} f5 {[%emt 0:16:11]} 18. fxe4 {[%emt 0:02:03]} fxe4 {[%emt 0:00:24]} 19. a4 {[%emt 0:06:21]} Nd3 {[%emt 0:05:21]} 20. Nb5 {[%emt 0:08:19]} a6 {[%emt 0:04:35]} 21. Na3 {[%emt 0:04:12]} Qe6 {[%emt 0:06:23]} 22. b4 {[%emt 0:07:58]} Qe5 {[%emt 0:01:56]} 23. Qg4+ {[%emt 0:02:48]} Kb8 {[%emt 0:02:11]} 24. g3 {[%emt 0:00:51]} Qxc3 {[%emt 0:04:38]} 25. Qe2 {[%emt 0:03:37]} Bxg3 {[%emt 0:03:06]} 26. b5 {[%emt 0:02:45]} Nf4 {[%emt 0:06:08]} 27. Bxf4+ {[%emt 0:01:51]} Bxf4 {[%emt 0:00:19]} 28. bxa6 {[%emt 0:00:47]} Rd2 {[%emt 0:01:12]} 29. a7+ {[%emt 0:00:50]} Ka8 {[%emt 0:00:38]} 0-1

[Event "Marshall CC U2400 October 2024"]
[Site "New York"]
[Date "2024.10.19"]
[Round "2.8"]
[White "Goodrich, Elliott"]
[Black "Raitzin, Misha"]
[Result "1/2-1/2"]
[ECO "C54"]
[WhiteElo "1851"]
[BlackElo "1784"]
[Annotator "NA RC"]
[PlyCount "39"]
[EventDate "2024.04.20"]
[EventType "swiss"]
[EventCountry "USA"]
[SourceTitle "playchess.com"]
[Source "ChessBase"]
[SourceQuality "1"]
[TimeControl "5400+30"]

1. e4 {[%emt 0:00:01]} e5 {[%emt 1:31:00]} 2. Nf3 {[%emt 0:00:08]} Nc6 {[%emt 0:00:00]} 3. Bc4 {[%emt 0:00:05]} Bc5 {[%emt 0:00:00]} 4. c3 {[%emt 0:00:05]} Nf6 {[%emt 0:00:00]} 5. d4 {[%emt 0:00:03]} exd4 {[%emt 0:00:00]} 6. e5 {[%emt 0:00:04]} d5 {[%emt 0:00:00]} 7. Bb5 {[%emt 0:00:04]} Ne4 {[%emt 0:00:00]} 8. cxd4 {[%emt 0:00:03]} Bb6 {[%emt 0:00:00]} 9. Nc3 {[%emt 0:00:04]} O-O {[%emt 0:00:00]} 10. Be3 {[%emt 0:00:06] C54: Giuoco Piano: 4 c3 Nf6, main lines with 5 d4 and 5 d3.} Bg4 {[%emt 0:00:00]} 11. h3 {[%emt 0:00:20]} Bh5 {[%emt 0:00:00]} 12. Qc2 {[%emt 0:00:03]} Ba5 {[%emt 0:00:00]} 13. O-O {[%emt 0:02:15]} Bxf3 {[%emt 0:00:00]} 14. gxf3 {[%emt 0:00:04]} Nxd4 {[%emt 0:00:00]} 15. Bxd4 {[%emt 0:03:50]} Qg5+ {[%emt 0:00:00]} 16. Kh1 {[%emt 0:00:53]} Bxc3 $1 {[%emt 0:00:00]} 17. bxc3 {[%emt 0:24:11]} Qf5 {[%emt 0:00:00]} 18. Kg2 {[%emt 0:02:41]} Qg5+ {[%emt 0:00:00]} 19. Kh1 {[%emt 0:03:37]} Qf5 $11 {[%emt 0:00:00]} 20. fxe4 {[%emt 0:14:13]} 1/2-1/2

[Event "Marshall CC U2400 October 2024"]
[Site "New York"]
[Date "2024.10.19"]
[Round "2.9"]
[White "Rajendran, Ishaan"]
[Black "Miller, Rachel"]
[Result "0-1"]
[ECO "D00"]
[WhiteElo "1773"]
[BlackElo "1914"]
[Annotator "RC"]
[PlyCount "126"]
[EventDate "2024.04.20"]
[EventType "swiss"]
[EventCountry "USA"]
[SourceTitle "playchess.com"]
[Source "ChessBase"]
[SourceQuality "1"]
[TimeControl "5400+30"]

1. d4 {[%emt 0:01:55]} d5 {[%emt 0:00:09]} 2. Bf4 {[%emt 0:01:03]} c5 {[%emt 0:00:05]} 3. Nc3 {[%emt 0:00:10]} Nc6 {[%emt 0:04:10]} 4. e4 {[%emt 0:00:02]} cxd4 {[%emt 0:01:45]} 5. exd5 {[%emt 0:00:02]} dxc3 {[%emt 0:01:10]} 6. dxc6 {[%emt 0:00:02]} Qxd1+ {[%emt 0:01:57]} 7. Rxd1 {[%emt 0:00:03]} bxc6 {[%emt 0:00:15]} 8. Bc7 {[%emt 0:03:34]} Bb7 {[%emt 0:05:10]} 9. bxc3 {[%emt 0:04:11]} Nf6 {[%emt 0:04:29]} 10. Nf3 {[%emt 0:05:26]} Nd7 {[%emt 0:26:07]} 11. Bc4 {[%emt 0:08:57]} e6 {[%emt 0:02:34]} 12. O-O {[%emt 0:06:34]} Nb6 {[%emt 0:01:50]} 13. Be2 {[%emt 0:08:12]} Be7 {[%emt 0:02:04]} 14. Rb1 {[%emt 0:06:02]} Bc5 {[%emt 0:01:35]} 15. Ne5 {[%emt 0:05:02]} Rc8 {[%emt 0:01:51]} 16. Bxb6 {[%emt 0:01:24]} axb6 {[%emt 0:01:53]} 17. Nd3 {[%emt 0:04:35]} Ba6 {[%emt 0:00:40]} 18. Nxc5 {[%emt 0:01:53]} Bxe2 {[%emt 0:02:39]} 19. Rfe1 {[%emt 0:00:19]} bxc5 {[%emt 0:00:13]} 20. Rxe2 {[%emt 0:00:08]} Kd7 {[%emt 0:01:02]} 21. Re4 {[%emt 0:13:45]} Rb8 {[%emt 0:03:08]} 22. Rd1+ {[%emt 0:00:53]} Ke7 {[%emt 0:02:36]} 23. Rc4 {[%emt 0:05:58]} Rhd8 {[%emt 0:00:24]} 24. Ra1 {[%emt 0:01:05]} Rb2 {[%emt 0:05:45]} 25. Rxc5 {[%emt 0:06:22]} Rxa2 {[%emt 0:00:30]} 26. Rb1 {[%emt 0:00:55]} Rb2 {[%emt 0:05:32]} 27. Ra1 {[%emt 0:00:32]} Ra8 {[%emt 0:02:20]} 28. Rd1 {[%emt 0:02:01]} Ra6 {[%emt 0:00:14]} 29. g3 {[%emt 0:01:57]} Rxc2 {[%emt 0:00:22]} 30. Rd4 {[%emt 0:01:51]} Raa2 {[%emt 0:04:15]} 31. Rf4 {[%emt 0:01:16]} Ra6 {[%emt 0:08:56]} 32. Rf3 {[%emt 0:01:39]} f6 {[%emt 0:00:26]} 33. Rc4 {[%emt 0:02:27]} e5 {[%emt 0:06:53]} 34. Rb4 {[%emt 0:01:58]} Ra7 {[%emt 0:00:46]} 35. Rc4 {[%emt 0:01:03]} Kd6 {[%emt 0:01:33]} 36. Rd3+ {[%emt 0:00:12]} Kc7 {[%emt 0:00:05]} 37. Rf3 {[%emt 0:03:26]} h6 {[%emt 0:00:30]} 38. Rd3 {[%emt 0:00:43]} Raa2 {[%emt 0:00:49]} 39. Rf3 {[%emt 0:00:16]} Kb6 {[%emt 0:00:57]} 40. Rg4 {[%emt 0:01:09]} Ra7 {[%emt 0:00:11]} 41. h4 {[%emt 0:00:41]} c5 {[%emt 0:00:13]} 42. h5 {[%emt 0:00:43]} Kb5 {[%emt 0:00:12]} 43. Kg2 {[%emt 0:00:31]} c4 {[%emt 0:00:15]} 44. Re4 {[%emt 0:00:28]} Rd7 {[%emt 0:00:14]} 45. Ree3 {[%emt 0:00:27]} Ka4 {[%emt 0:00:23]} 46. Kf1 {[%emt 0:00:55]} Rd1+ {[%emt 0:01:00]} 47. Re1 {[%emt 0:00:33]} Rxe1+ {[%emt 0:00:15]} 48. Kxe1 {[%emt 0:00:01]} Kb3 {[%emt 0:00:06]} 49. Re3 {[%emt 0:00:37]} Rxc3 {[%emt 0:00:06]} 50. Re4 {[%emt 0:00:11]} Rd3 {[%emt 0:00:35]} 51. f4 {[%emt 0:01:00]} c3 {[%emt 0:01:48]} 52. Ke2 {[%emt 0:00:48]} Rd5 {[%emt 0:00:03]} 53. Re3 {[%emt 0:00:32]} exf4 {[%emt 0:00:09]} 54. gxf4 {[%emt 0:00:23]} Kb2 {[%emt 0:00:50]} 55. Re7 {[%emt 0:00:28]} Rb5 {[%emt 0:00:24]} 56. Kd3 {[%emt 0:00:38]} c2 {[%emt 0:00:24]} 57. Re2 {[%emt 0:00:07]} Rd5+ {[%emt 0:00:15]} 58. Kc4 {[%emt 0:00:39]} Rxh5 {[%emt 0:00:05]} 59. Kd3 {[%emt 0:00:24]} Rh3+ {[%emt 0:00:08]} 60. Ke4 {[%emt 0:00:24]} Kb1 {[%emt 0:00:11]} 61. Rxc2 {[%emt 0:00:23]} Kxc2 {[%emt 0:00:07]} 62. Kf5 {[%emt 0:00:06]} Rg3 {[%emt 0:00:13]} 63. Ke6 {[%emt 0:00:07]} h5 {[%emt 0:00:06]} 0-1

[Event "Marshall CC U2400 October 2024"]
[Site "New York"]
[Date "2024.10.19"]
[Round "2.10"]
[White "Wang, Connor Junda"]
[Black "Sen, Samant Robert"]
[Result "1-0"]
[ECO "C41"]
[WhiteElo "1851"]
[BlackElo "1739"]
[Annotator "NA RC"]
[PlyCount "55"]
[EventDate "2024.04.20"]
[EventType "swiss"]
[EventCountry "USA"]
[SourceTitle "playchess.com"]
[Source "ChessBase"]
[SourceQuality "1"]
[TimeControl "5400+30"]

1. e4 {[%emt 0:09:12]} d6 {[%emt 0:00:04]} 2. d4 {[%emt 0:00:08]} Nf6 {[%emt 0:00:06]} 3. Nc3 {[%emt 0:00:14]} Nbd7 {[%emt 0:00:13]} 4. Nf3 {[%emt 0:00:58]} e5 {[%emt 0:00:16]} 5. Bc4 {[%emt 0:00:50]} Be7 {[%emt 0:00:12]} 6. h3 {[%emt 0:03:54]} c6 {[%emt 0:00:38]} 7. a4 {[%emt 0:00:11]} h6 {[%emt 0:01:18]} 8. Be3 {[%emt 0:01:49]} Qc7 {[%emt 0:00:50]} 9. Qe2 {[%emt 0:07:30]} Nxe4 {[%emt 0:11:04]} 10. Bxf7+ {[%emt 0:07:45]} Kxf7 {[%emt 0:00:24]} 11. Nxe4 {[%emt 0:00:10]} Nf6 {[%emt 0:03:46]} ({Vorzuziehen ist} 11... d5 $15 12. Nc5 Bxc5 13. dxc5 Rf8) 12. Nxf6 {[%emt 0:15:49]} Bxf6 {[%emt 0:00:12]} 13. O-O {[%emt 0:03:04]} Bf5 {[%emt 0:13:17]} 14. Rad1 {[%emt 0:06:12]} Rhe8 {[%emt 0:11:16]} 15. dxe5 {[%emt 0:00:23]} dxe5 {[%emt 0:04:59]} 16. Nh4 {[%emt 0:40:21]} Bxh4 {[%emt 0:06:56]} 17. Qh5+ {[%emt 0:00:00]} Bg6 {[%emt 0:09:10]} 18. Qxh4 {[%emt 0:00:00]} Qe7 {[%emt 0:00:40]} 19. Qc4+ {[%emt 0:00:00]} Qe6 {[%emt 0:01:51]} 20. Qb4 {[%emt 0:00:00]} Bxc2 {[%emt 0:33:18]} 21. Rd6 {[%emt 0:00:00]} Qb3 {[%emt 0:00:00]} 22. Rd7+ {[%emt 0:00:00]} Kg8 {[%emt 0:00:00]} 23. Qg4 {[%emt 0:00:00]} g6 {[%emt 0:00:00]} 24. Bxh6 {[%emt 0:00:00]} Qxa4 {[%emt 0:00:00]} 25. Rg7+ {[%emt 0:00:00]} Kf8 {[%emt 0:00:00]} 26. Qd7 {[%emt 0:00:00]} Bb3 {[%emt 0:00:00]} 27. Qd6+ {[%emt 0:00:00]} Re7 {[%emt 0:00:00]} 28. Qxe7# {[%emt 0:00:00]} 1-0

[Event "Marshall CC U2400 October 2024"]
[Site "New York"]
[Date "2024.10.20"]
[Round "3.1"]
[White "Sarkar, Justin"]
[Black "Paragua, Megan Althea"]
[Result "1/2-1/2"]
[ECO "D37"]
[WhiteElo "2275"]
[BlackElo "2190"]
[Annotator "RC"]
[PlyCount "115"]
[EventDate "2024.04.20"]
[EventType "swiss"]
[EventCountry "USA"]
[SourceTitle "playchess.com"]
[Source "ChessBase"]
[SourceQuality "1"]
[TimeControl "5400+30"]

1. d4 {[%emt 0:00:20]} Nf6 {[%emt 0:00:07]} 2. c4 {[%emt 0:00:20]} e6 {[%emt 0:00:09]} 3. Nf3 {[%emt 0:01:00]} d5 {[%emt 0:00:03]} 4. Nc3 {[%emt 0:00:20]} Be7 {[%emt 0:00:08]} 5. Bf4 {[%emt 0:00:22]} O-O {[%emt 0:00:08]} 6. e3 {[%emt 0:01:14]} c5 {[%emt 0:00:07]} 7. dxc5 {[%emt 0:00:21]} Bxc5 {[%emt 0:00:03]} 8. cxd5 {[%emt 0:01:58]} Nxd5 {[%emt 0:01:39]} 9. Nxd5 {[%emt 0:00:09]} exd5 {[%emt 0:00:07]} 10. Bd3 {[%emt 0:00:09]} Bb6 {[%emt 0:00:17]} 11. O-O {[%emt 0:00:16]} Nc6 {[%emt 0:00:13]} 12. b4 {[%emt 0:01:42]} h6 {[%emt 0:02:41]} 13. b5 {[%emt 0:04:38]} Ne7 {[%emt 0:03:00]} 14. Nd4 {[%emt 0:05:10]} Bxd4 {[%emt 0:06:32]} 15. exd4 {[%emt 0:00:07]} Bf5 {[%emt 0:00:27]} 16. Be2 {[%emt 0:00:32]} Ng6 {[%emt 0:00:33]} 17. Be3 {[%emt 0:03:26]} Rc8 {[%emt 0:00:36]} 18. Qa4 {[%emt 0:04:20]} Qb6 {[%emt 0:01:32]} 19. Rac1 {[%emt 0:00:06]} Nh4 {[%emt 0:03:44]} 20. g3 {[%emt 0:47:23]} Bh3 {[%emt 0:03:36]} 21. Rxc8 {[%emt 0:00:56]} Rxc8 {[%emt 0:00:13]} 22. Rc1 {[%emt 0:00:12]} Rxc1+ {[%emt 0:05:08]} 23. Bxc1 {[%emt 0:00:03]} Qe6 {[%emt 0:00:27]} 24. Qd1 {[%emt 0:02:29]} Nf5 {[%emt 0:00:36]} 25. Bb2 {[%emt 0:08:27]} Nd6 {[%emt 0:04:08]} 26. a4 {[%emt 0:01:49]} b6 {[%emt 0:04:32]} 27. Bf3 {[%emt 0:01:13]} Nc4 {[%emt 0:00:43]} 28. Bc3 {[%emt 0:01:41]} Bf5 {[%emt 0:00:27]} 29. Qe1 {[%emt 0:03:08]} Bc2 {[%emt 0:03:22]} 30. a5 {[%emt 0:03:31]} Nd6 {[%emt 0:07:15]} 31. axb6 {[%emt 0:01:03]} axb6 {[%emt 0:00:03]} 32. Qxe6 {[%emt 0:02:32]} fxe6 {[%emt 0:01:18]} 33. Be2 {[%emt 0:00:04]} Ba4 {[%emt 0:00:17]} 34. Bb4 {[%emt 0:00:06]} Nc8 {[%emt 0:01:21]} 35. f4 {[%emt 0:02:20]} Na7 {[%emt 0:01:21]} 36. Bd6 {[%emt 0:00:33]} Bxb5 {[%emt 0:00:17]} 37. Bb8 {[%emt 0:00:13]} Nc6 {[%emt 0:01:20]} 38. Bxb5 {[%emt 0:00:19]} Nxb8 {[%emt 0:00:02]} 39. Kf2 {[%emt 0:00:29]} Kf7 {[%emt 0:00:28]} 40. Kf3 {[%emt 0:03:10]} Ke7 {[%emt 0:00:15]} 41. Kg4 {[%emt 0:01:14]} Kd6 {[%emt 0:01:26]} 42. Kh5 {[%emt 0:00:15]} Nc6 {[%emt 0:01:01]} 43. Kg6 {[%emt 0:00:03]} Nxd4 {[%emt 0:01:05]} 44. Bd3 {[%emt 0:00:02]} Nf5 {[%emt 0:05:28]} 45. g4 {[%emt 0:00:08]} Ne3 {[%emt 0:00:48]} 46. g5 {[%emt 0:02:22]} hxg5 {[%emt 0:03:01]} 47. fxg5 {[%emt 0:00:02]} Nf5 {[%emt 0:01:35]} 48. Kf7 {[%emt 0:00:48]} d4 {[%emt 0:00:46]} 49. g6 {[%emt 0:00:35]} Ke5 {[%emt 0:00:34]} 50. h4 {[%emt 0:00:25]} Nxh4 {[%emt 0:00:08]} 51. Kxg7 {[%emt 0:00:03]} Kf4 {[%emt 0:00:23]} 52. Kf6 {[%emt 0:00:20]} Nxg6 {[%emt 0:00:04]} 53. Bxg6 {[%emt 0:00:05]} e5 {[%emt 0:00:56]} 54. Ke6 {[%emt 0:00:07]} b5 {[%emt 0:01:08]} 55. Kd5 {[%emt 0:00:09]} Ke3 {[%emt 0:02:29]} 56. Kxe5 {[%emt 0:00:24]} d3 {[%emt 0:00:36]} 57. Kd5 {[%emt 0:00:05]} b4 {[%emt 0:00:18]} 58. Kc4 {[%emt 0:00:09]} 1/2-1/2

[Event "Marshall CC U2400 October 2024"]
[Site "New York"]
[Date "2024.10.20"]
[Round "3.2"]
[White "Sukhiashvili, Alexander"]
[Black "Bonin, Jay"]
[Result "0-1"]
[ECO "B12"]
[WhiteElo "1812"]
[BlackElo "2131"]
[Annotator "RC"]
[PlyCount "92"]
[EventDate "2024.04.20"]
[EventType "swiss"]
[EventCountry "USA"]
[SourceTitle "playchess.com"]
[Source "ChessBase"]
[SourceQuality "1"]
[TimeControl "5400+30"]

1. e4 {[%emt 0:00:02]} c6 {[%emt 0:00:06]} 2. d4 {[%emt 0:00:05]} a6 {[%emt 0:00:05]} 3. c4 {[%emt 0:00:43]} d6 {[%emt 0:00:07]} 4. Nc3 {[%emt 0:00:08]} b5 {[%emt 0:00:05]} 5. a3 {[%emt 0:00:22]} Nf6 {[%emt 0:01:17]} 6. Bg5 {[%emt 0:02:42]} h6 {[%emt 0:04:37]} 7. Bxf6 {[%emt 0:00:48]} exf6 {[%emt 0:00:14]} 8. Bd3 {[%emt 0:01:49]} bxc4 {[%emt 0:01:35]} 9. Bxc4 {[%emt 0:00:12]} Be7 {[%emt 0:00:06]} 10. Nge2 {[%emt 0:01:15]} f5 {[%emt 0:02:37]} 11. Bd3 {[%emt 0:04:39]} fxe4 {[%emt 0:00:43]} 12. Bxe4 {[%emt 0:00:11]} d5 {[%emt 0:01:39]} 13. Bc2 {[%emt 0:00:28]} a5 {[%emt 0:01:15]} 14. O-O {[%emt 0:00:47]} Ba6 {[%emt 0:00:14]} 15. Rb1 {[%emt 0:07:35]} O-O {[%emt 0:01:37]} 16. b4 {[%emt 0:02:32]} Bc4 {[%emt 0:03:14]} 17. Re1 {[%emt 0:03:13]} axb4 {[%emt 0:02:55]} 18. axb4 {[%emt 0:00:02]} Na6 {[%emt 0:00:21]} 19. Ng3 {[%emt 0:12:57]} Bxb4 {[%emt 0:03:16]} 20. Re3 {[%emt 0:00:37]} Re8 {[%emt 0:00:57]} 21. Rf3 {[%emt 0:09:08]} Bxc3 {[%emt 0:05:57]} 22. Rxc3 {[%emt 0:00:03]} Nc7 {[%emt 0:03:35]} 23. Nh5 {[%emt 0:05:49]} Be2 {[%emt 0:00:44]} 24. Qd2 {[%emt 0:03:28]} Bxh5 {[%emt 0:00:21]} 25. Rxc6 {[%emt 0:02:41]} Ne6 {[%emt 0:00:29]} 26. Rc3 {[%emt 0:01:57]} Qf6 {[%emt 0:00:57]} 27. Bd1 {[%emt 0:09:00]} Bxd1 {[%emt 0:00:30]} 28. Rxd1 {[%emt 0:00:02]} Nxd4 {[%emt 0:00:28]} 29. Re3 {[%emt 0:03:16]} Rxe3 {[%emt 0:01:58]} 30. fxe3 {[%emt 0:00:34]} Nf5 {[%emt 0:00:16]} 31. Qxd5 {[%emt 0:00:07]} Ra1 {[%emt 0:00:10]} 32. Rxa1 {[%emt 0:01:11]} Qxa1+ {[%emt 0:00:06]} 33. Kf2 {[%emt 0:00:04]} Qf1+ {[%emt 0:00:06]} 34. Kxf1 {[%emt 0:00:37]} Nxe3+ {[%emt 0:00:05]} 35. Ke2 {[%emt 0:00:09]} Nxd5 {[%emt 0:00:03]} 36. Kf3 {[%emt 0:00:15]} f5 {[%emt 0:00:07]} 37. g4 {[%emt 0:00:19]} f4 {[%emt 0:00:15]} 38. Ke4 {[%emt 0:01:47]} Kf7 {[%emt 0:00:13]} 39. Kf3 {[%emt 0:00:07]} Kf6 {[%emt 0:00:11]} 40. h4 {[%emt 0:00:08]} Ke5 {[%emt 0:00:04]} 41. Kg2 {[%emt 0:00:04]} Ke4 {[%emt 0:00:05]} 42. Kf2 {[%emt 0:00:18]} f3 {[%emt 0:00:15]} 43. g5 {[%emt 0:00:15]} h5 {[%emt 0:00:05]} 44. g6 {[%emt 0:00:05]} Kf4 {[%emt 0:00:11]} 45. Kg1 {[%emt 0:00:06]} Kg3 {[%emt 0:00:08]} 46. Kh1 {[%emt 0:00:04]} Ne3 {[%emt 0:00:08]} 0-1